[Event "*** SCC Grand Prix: Titled Tuesday Blitz"]
[Site "Chess.com"]
[Date "2020.06.09"]
[Round "10"]
[White "Flawless_Fighter"]
[Black "Love_craft"]
[Result "0-1"]
[WhiteElo "2591"]
[BlackElo "2470"]
[TimeControl "180+1"]
[EndTime "10:59:18 PDT"]
[Termination "Love_craft won by resignation"]

1. e4 {[%clk 0:03:00.9]} 1... g6 {[%clk 0:02:59.9]} 2. d4 {[%clk 0:03:00.6]}
2... Bg7 {[%clk 0:03:00.3]} 3. Nc3 {[%clk 0:03:01.5]} 3... d6 {[%clk 0:03:00.5]}
4. Nf3 {[%clk 0:03:01.3]} 4... Nf6 {[%clk 0:03:00.3]} 5. Be2 {[%clk 0:03:01.8]}
5... O-O {[%clk 0:03:00.5]} 6. O-O {[%clk 0:03:02.4]} 6... Nbd7 {[%clk
0:03:01.2]} 7. Re1 {[%clk 0:03:01.2]} 7... e5 {[%clk 0:03:01.6]} 8. Bf1 {[%clk
0:02:58.6]} 8... c6 {[%clk 0:03:01.2]} 9. h3 {[%clk 0:02:57.9]} 9... Qe7 {[%clk
0:03:01.1]} 10. a4 {[%clk 0:02:56.3]} 10... a5 {[%clk 0:02:55.6]} 11. dxe5
{[%clk 0:02:55.4]} 11... dxe5 {[%clk 0:02:55.5]} 12. b3 {[%clk 0:02:55.8]} 12...
Rd8 {[%clk 0:02:52.4]} 13. Ba3 {[%clk 0:02:55.5]} 13... Qe8 {[%clk 0:02:48.2]}
14. Qd3 {[%clk 0:02:48.1]} 14... Nf8 {[%clk 0:02:32.6]} 15. Qe3 {[%clk
0:02:43.4]} 15... Nh5 {[%clk 0:02:25.4]} 16. Rad1 {[%clk 0:02:41]} 16... Rxd1
{[%clk 0:02:04.5]} 17. Rxd1 {[%clk 0:02:41.9]} 17... Nf4 {[%clk 0:01:59.9]} 18.
Bd6 {[%clk 0:02:38]} 18... Bh6 {[%clk 0:01:52.2]} 19. Qc5 {[%clk 0:02:02.2]}
19... f6 {[%clk 0:01:39.6]} 20. Kh2 {[%clk 0:01:25.8]} 20... Be6 {[%clk
0:01:25.6]} 21. Bc7 {[%clk 0:01:21.7]} 21... Nd7 {[%clk 0:01:20.2]} 22. Qd6
{[%clk 0:01:07.4]} 22... Bf8 {[%clk 0:01:13.8]} 23. Qd2 {[%clk 0:01:07.6]} 23...
Bb4 {[%clk 0:01:07.4]} 24. g3 {[%clk 0:01:04.7]} 24... Nh5 {[%clk 0:00:50.2]}
25. Bd6 {[%clk 0:00:55.5]} 25... Ng7 {[%clk 0:00:44.1]} 26. Bxb4 {[%clk
0:00:52.4]} 26... axb4 {[%clk 0:00:45]} 27. Na2 {[%clk 0:00:53]} 27... c5 {[%clk
0:00:43]} 28. Nc1 {[%clk 0:00:49.7]} 28... Qe7 {[%clk 0:00:38.5]} 29. Bb5 {[%clk
0:00:45.6]} 29... Rd8 {[%clk 0:00:23.6]} 30. Qd6 {[%clk 0:00:24.3]} 30... Qxd6
{[%clk 0:00:20.6]} 31. Rxd6 {[%clk 0:00:25.2]} 31... Kf7 {[%clk 0:00:19]} 32.
Rd2 {[%clk 0:00:18.8]} 32... Ke7 {[%clk 0:00:18.6]} 33. Nd3 {[%clk 0:00:18.8]}
33... b6 {[%clk 0:00:16.9]} 34. Kg2 {[%clk 0:00:15.9]} 34... g5 {[%clk
0:00:15.7]} 35. Rd1 {[%clk 0:00:15.5]} 35... h5 {[%clk 0:00:16]} 36. a5 {[%clk
0:00:13.9]} 36... bxa5 {[%clk 0:00:15.6]} 37. Ra1 {[%clk 0:00:13.6]} 37... Ra8
{[%clk 0:00:15.5]} 38. Bxd7 {[%clk 0:00:13.2]} 38... Bxd7 {[%clk 0:00:15.1]} 39.
Nxc5 {[%clk 0:00:13.8]} 39... Bc6 {[%clk 0:00:15.7]} 40. h4 {[%clk 0:00:14]}
40... Ne6 {[%clk 0:00:12.7]} 41. Nxe6 {[%clk 0:00:10.9]} 41... Kxe6 {[%clk
0:00:13.6]} 42. Nd2 {[%clk 0:00:08.6]} 42... gxh4 {[%clk 0:00:13.2]} 43. gxh4
{[%clk 0:00:09]} 43... a4 {[%clk 0:00:13.5]} 44. bxa4 {[%clk 0:00:07.7]} 44...
Rxa4 {[%clk 0:00:14.4]} 45. Rb1 {[%clk 0:00:05]} 45... Kd6 {[%clk 0:00:11.8]}
46. Rb2 {[%clk 0:00:04.8]} 46... Kc5 {[%clk 0:00:10]} 47. Kf3 {[%clk 0:00:05.3]}
47... Ra8 {[%clk 0:00:08.8]} 48. Ke3 {[%clk 0:00:05.2]} 48... Rg8 {[%clk
0:00:08.4]} 49. Nb3+ {[%clk 0:00:04.4]} 49... Kb5 {[%clk 0:00:07.2]} 50. Nd2
{[%clk 0:00:03.7]} 50... Rg4 {[%clk 0:00:05.8]} 51. f3 {[%clk 0:00:03.8]} 51...
Rxh4 {[%clk 0:00:05.7]} 52. c3 {[%clk 0:00:04.2]} 52... Rh1 {[%clk 0:00:03.7]}
53. Rxb4+ {[%clk 0:00:04.7]} 53... Kc5 {[%clk 0:00:02.9]} 54. Rc4+ {[%clk
0:00:05.4]} 54... Kd6 {[%clk 0:00:03.2]} 55. Rb4 {[%clk 0:00:06.2]} 55... h4
{[%clk 0:00:02.4]} 56. Rb8 {[%clk 0:00:06.2]} 56... Kc7 {[%clk 0:00:02.7]} 57.
Rh8 {[%clk 0:00:05.5]} 57... h3 {[%clk 0:00:03.6]} 58. Kf2 {[%clk 0:00:04.4]}
58... h2 {[%clk 0:00:03.6]} 59. Nf1 {[%clk 0:00:04.4]} 59... Bb5 {[%clk
0:00:03.1]} 60. Nxh2 {[%clk 0:00:04.8]} 60... Rc1 {[%clk 0:00:02.9]} 61. Rh7+
{[%clk 0:00:04.6]} 61... Kb6 {[%clk 0:00:02.9]} 62. Ng4 {[%clk 0:00:04.1]} 62...
Rc2+ {[%clk 0:00:03.3]} 63. Kg3 {[%clk 0:00:03.7]} 63... Rxc3 {[%clk 0:00:04.2]}
64. Nxf6 {[%clk 0:00:04.2]} 64... Be2 {[%clk 0:00:04.8]} 65. Ng4 {[%clk
0:00:02.3]} 65... Rxf3+ {[%clk 0:00:04.9]} 66. Kh4 {[%clk 0:00:03.2]} 66... Rf4
{[%clk 0:00:05.2]} 67. Rh6+ {[%clk 0:00:03.5]} 67... Kc5 {[%clk 0:00:05.2]} 68.
Rg6 {[%clk 0:00:03.6]} 68... Rxe4 {[%clk 0:00:05.6]} 69. Kg3 {[%clk 0:00:03.6]}
69... Rxg4+ {[%clk 0:00:05.9]} 70. Rxg4 {[%clk 0:00:02.4]} 70... Bxg4 {[%clk
0:00:06.8]} 71. Kxg4 {[%clk 0:00:03.1]} 71... Kd4 {[%clk 0:00:07.3]} 72. Kf3
{[%clk 0:00:04]} 72... Kd3 {[%clk 0:00:07.8]} 73. Kf2 {[%clk 0:00:04.9]} 73...
e4 {[%clk 0:00:08.3]} 74. Ke1 {[%clk 0:00:05.2]} 74... Ke3 {[%clk 0:00:08.8]}
75. Kd1 {[%clk 0:00:05.9]} 75... Kf2 {[%clk 0:00:09.2]} 76. Kd2 {[%clk
0:00:06.4]} 76... e3+ {[%clk 0:00:09.6]} 77. Kd3 {[%clk 0:00:07.1]} 77... e2
{[%clk 0:00:10.1]} 0-1

[Event "*** SCC Grand Prix: Titled Tuesday Blitz"]
[Site "Chess.com"]
[Date "2020.06.09"]
[Round "10"]
[White "mbachez"]
[Black "ChessQueen"]
[Result "0-1"]
[WhiteElo "2534"]
[BlackElo "2673"]
[TimeControl "180+1"]
[EndTime "10:59:23 PDT"]
[Termination "ChessQueen won by resignation"]

1. e4 {[%clk 0:03:00.7]} 1... c6 {[%clk 0:02:59.6]} 2. d4 {[%clk 0:02:59.9]}
2... d5 {[%clk 0:02:59.3]} 3. e5 {[%clk 0:02:59.5]} 3... c5 {[%clk 0:02:59.1]}
4. Nf3 {[%clk 0:02:59.2]} 4... Nc6 {[%clk 0:02:52.8]} 5. c4 {[%clk 0:02:59.1]}
5... e6 {[%clk 0:02:47]} 6. Nc3 {[%clk 0:02:55.7]} 6... cxd4 {[%clk 0:02:43.1]}
7. Nxd4 {[%clk 0:02:51.9]} 7... Bc5 {[%clk 0:02:32.6]} 8. Nxc6 {[%clk
0:02:47.6]} 8... bxc6 {[%clk 0:02:32.4]} 9. Qg4 {[%clk 0:02:47.4]} 9... g6
{[%clk 0:02:20.1]} 10. Bd3 {[%clk 0:02:47]} 10... Qc7 {[%clk 0:02:10.8]} 11. Bf4
{[%clk 0:02:41.4]} 11... Ne7 {[%clk 0:02:05.9]} 12. O-O {[%clk 0:02:39]} 12...
Ba6 {[%clk 0:01:47.2]} 13. Rac1 {[%clk 0:02:25.8]} 13... Nf5 {[%clk 0:01:26.9]}
14. Na4 {[%clk 0:02:09.1]} 14... Be7 {[%clk 0:01:13.4]} 15. Rfd1 {[%clk
0:01:59.6]} 15... dxc4 {[%clk 0:01:03.5]} 16. Bxc4 {[%clk 0:01:32.5]} 16... Bxc4
{[%clk 0:01:03.2]} 17. Rxc4 {[%clk 0:01:32.3]} 17... O-O {[%clk 0:01:03.7]} 18.
Rdc1 {[%clk 0:01:29.2]} 18... Qa5 {[%clk 0:00:58.9]} 19. Qf3 {[%clk 0:00:53.4]}
19... Rad8 {[%clk 0:00:45.7]} 20. g3 {[%clk 0:00:39.6]} 20... Rd5 {[%clk
0:00:44.1]} 21. b3 {[%clk 0:00:37.1]} 21... Rfd8 {[%clk 0:00:36.1]} 22. Kg2
{[%clk 0:00:35.5]} 22... h5 {[%clk 0:00:32.5]} 23. Rxc6 {[%clk 0:00:33.4]} 23...
Nd4 {[%clk 0:00:31.9]} 24. Qc3 {[%clk 0:00:25.2]} 24... Nxc6 {[%clk 0:00:31.1]}
25. Qxc6 {[%clk 0:00:25.2]} 25... Rd4 {[%clk 0:00:30.8]} 26. Be3 {[%clk
0:00:22]} 26... R4d5 {[%clk 0:00:27.5]} 27. Bf4 {[%clk 0:00:22.1]} 27... g5
{[%clk 0:00:26.8]} 28. Be3 {[%clk 0:00:22.2]} 28... Rxe5 {[%clk 0:00:26.3]} 29.
Qf3 {[%clk 0:00:21.2]} 29... g4 {[%clk 0:00:23.2]} 30. Qb7 {[%clk 0:00:21.1]}
30... Qd5+ {[%clk 0:00:21.3]} 31. Qxd5 {[%clk 0:00:20.8]} 31... exd5 {[%clk
0:00:21.7]} 32. Bxa7 {[%clk 0:00:20.7]} 32... d4 {[%clk 0:00:22.2]} 33. Rd1
{[%clk 0:00:20.9]} 33... d3 {[%clk 0:00:22.2]} 34. Be3 {[%clk 0:00:21]} 34...
Bb4 {[%clk 0:00:21.6]} 35. Nb2 {[%clk 0:00:20.2]} 35... d2 {[%clk 0:00:21.1]}
36. Nc4 {[%clk 0:00:19.8]} 36... Red5 {[%clk 0:00:21.6]} 37. a3 {[%clk
0:00:19.7]} 37... Bc3 {[%clk 0:00:21.5]} 38. Kf1 {[%clk 0:00:19.6]} 38... Rb8
{[%clk 0:00:20.6]} 39. b4 {[%clk 0:00:19]} 39... Rbd8 {[%clk 0:00:18.1]} 40. Ke2
{[%clk 0:00:17.5]} 40... h4 {[%clk 0:00:18.4]} 41. gxh4 {[%clk 0:00:17.1]} 41...
f5 {[%clk 0:00:18.4]} 42. b5 {[%clk 0:00:15.3]} 42... Rxb5 {[%clk 0:00:18]} 43.
Bxd2 {[%clk 0:00:15.6]} 43... Bxd2 {[%clk 0:00:17.1]} 44. Rxd2 {[%clk 0:00:14]}
44... Rxd2+ {[%clk 0:00:15.5]} 45. Kxd2 {[%clk 0:00:14]} 45... Rb3 {[%clk
0:00:15.7]} 46. Nd6 {[%clk 0:00:12.4]} 46... Rf3 {[%clk 0:00:14.9]} 47. Ke2
{[%clk 0:00:11.7]} 47... Kg7 {[%clk 0:00:14.5]} 48. a4 {[%clk 0:00:11.5]} 48...
Kf6 {[%clk 0:00:14.8]} 49. a5 {[%clk 0:00:11.2]} 49... Ra3 {[%clk 0:00:14.9]}
50. h5 {[%clk 0:00:11]} 50... Rxa5 {[%clk 0:00:13.8]} 51. h6 {[%clk 0:00:10.8]}
51... Ra7 {[%clk 0:00:13.3]} 52. Ke3 {[%clk 0:00:09.1]} 52... Kg5 {[%clk
0:00:11.2]} 53. f4+ {[%clk 0:00:07.2]} 53... gxf3 {[%clk 0:00:10.4]} 54. Kxf3
{[%clk 0:00:07.5]} 54... Rh7 {[%clk 0:00:09.6]} 55. Kg2 {[%clk 0:00:07.2]} 55...
Kf6 {[%clk 0:00:08.5]} 56. Kg3 {[%clk 0:00:05]} 56... Rxh6 {[%clk 0:00:08.9]}
57. Nc4 {[%clk 0:00:04.8]} 57... Kg5 {[%clk 0:00:08.7]} 58. Ne5 {[%clk
0:00:04.4]} 58... Ra6 {[%clk 0:00:08.6]} 59. Nf3+ {[%clk 0:00:04]} 59... Kf6
{[%clk 0:00:08.7]} 60. h4 {[%clk 0:00:03.9]} 60... Ra4 {[%clk 0:00:09.3]} 61. h5
{[%clk 0:00:03.9]} 61... Rg4+ {[%clk 0:00:09.9]} 62. Kh3 {[%clk 0:00:03.9]}
62... Kg7 {[%clk 0:00:10.1]} 63. Nh4 {[%clk 0:00:03.2]} 63... Kf6 {[%clk
0:00:10]} 64. Nf3 {[%clk 0:00:02.4]} 64... Rg8 {[%clk 0:00:07.9]} 65. Kh4 {[%clk
0:00:02.7]} 65... f4 {[%clk 0:00:08.1]} 66. Kh3 {[%clk 0:00:02.8]} 66... Rg3+
{[%clk 0:00:07.2]} 67. Kh4 {[%clk 0:00:03.2]} 67... Rxf3 {[%clk 0:00:07.5]} 68.
h6 {[%clk 0:00:04.1]} 68... Kg6 {[%clk 0:00:07.5]} 69. h7 {[%clk 0:00:05]} 69...
Kxh7 {[%clk 0:00:07.7]} 70. Kg4 {[%clk 0:00:05.5]} 70... Rf1 {[%clk 0:00:08.6]}
0-1

[Event "*** SCC Grand Prix: Titled Tuesday Blitz"]
[Site "Chess.com"]
[Date "2020.06.09"]
[Round "10"]
[White "mjray79"]
[Black "crazy_but_lazy"]
[Result "0-1"]
[WhiteElo "2310"]
[BlackElo "2424"]
[TimeControl "180+1"]
[EndTime "10:59:26 PDT"]
[Termination "crazy_but_lazy won on time"]

1. d4 {[%clk 0:03:00.9]} 1... d6 {[%clk 0:02:57.9]} 2. c4 {[%clk 0:03:00.4]}
2... g6 {[%clk 0:02:55.2]} 3. e4 {[%clk 0:02:59.5]} 3... Bg7 {[%clk 0:02:55.1]}
4. Nc3 {[%clk 0:02:59.3]} 4... Nc6 {[%clk 0:02:54.2]} 5. Nge2 {[%clk 0:02:58.8]}
5... e5 {[%clk 0:02:54]} 6. d5 {[%clk 0:02:58.3]} 6... Nd4 {[%clk 0:02:53.7]} 7.
Be3 {[%clk 0:02:56.5]} 7... Nxe2 {[%clk 0:02:36.8]} 8. Bxe2 {[%clk 0:02:55.9]}
8... h5 {[%clk 0:02:37.4]} 9. h4 {[%clk 0:02:53.9]} 9... Bh6 {[%clk 0:02:33.6]}
10. Bxh6 {[%clk 0:02:46.3]} 10... Nxh6 {[%clk 0:02:33.3]} 11. b4 {[%clk
0:02:46]} 11... a5 {[%clk 0:02:32.1]} 12. a3 {[%clk 0:02:45.3]} 12... Bd7 {[%clk
0:02:18.3]} 13. c5 {[%clk 0:02:43.2]} 13... Qf6 {[%clk 0:02:10.3]} 14. Rc1
{[%clk 0:02:38.8]} 14... axb4 {[%clk 0:02:07.7]} 15. axb4 {[%clk 0:02:39.7]}
15... Ng4 {[%clk 0:01:59.2]} 16. Bxg4 {[%clk 0:02:37.7]} 16... Bxg4 {[%clk
0:01:54.8]} 17. Qd2 {[%clk 0:02:24]} 17... O-O {[%clk 0:01:53.6]} 18. Nb5 {[%clk
0:02:17.9]} 18... Rfc8 {[%clk 0:01:44.2]} 19. Qg5 {[%clk 0:02:06.1]} 19... Qxg5
{[%clk 0:01:32.1]} 20. hxg5 {[%clk 0:02:07]} 20... Bd7 {[%clk 0:01:32.4]} 21. c6
{[%clk 0:01:59.3]} 21... bxc6 {[%clk 0:01:29.7]} 22. dxc6 {[%clk 0:02:00.2]}
22... Be6 {[%clk 0:01:30]} 23. O-O {[%clk 0:01:43.1]} 23... Rab8 {[%clk
0:01:27.1]} 24. Na7 {[%clk 0:01:41.8]} 24... Rf8 {[%clk 0:01:20.4]} 25. Rb1
{[%clk 0:01:37.6]} 25... Rb6 {[%clk 0:01:16]} 26. b5 {[%clk 0:01:31.2]} 26...
Ra8 {[%clk 0:01:03.9]} 27. Ra1 {[%clk 0:01:30.8]} 27... Bc4 {[%clk 0:00:54.4]}
28. Rfc1 {[%clk 0:01:19.1]} 28... Bd3 {[%clk 0:00:19.6]} 29. f3 {[%clk
0:01:15.4]} 29... Rab8 {[%clk 0:00:19.9]} 30. Kf2 {[%clk 0:00:46.3]} 30... Bxb5
{[%clk 0:00:19.8]} 31. Nxb5 {[%clk 0:00:46.2]} 31... Rxb5 {[%clk 0:00:20.7]} 32.
Ra7 {[%clk 0:00:46.3]} 32... Rc8 {[%clk 0:00:21.2]} 33. Rca1 {[%clk 0:00:41.8]}
33... Rb2+ {[%clk 0:00:17]} 34. Ke3 {[%clk 0:00:35.1]} 34... Rc2 {[%clk
0:00:06.1]} 35. R1a6 {[%clk 0:00:31.7]} 35... Kf8 {[%clk 0:00:05.7]} 36. Kd3
{[%clk 0:00:26.6]} 36... Rc5 {[%clk 0:00:05]} 37. Rb7 {[%clk 0:00:24.6]} 37...
Ke7 {[%clk 0:00:04.7]} 38. g3 {[%clk 0:00:23.9]} 38... Kd8 {[%clk 0:00:04.7]}
39. f4 {[%clk 0:00:21.7]} 39... exf4 {[%clk 0:00:03.6]} 40. gxf4 {[%clk
0:00:22.6]} 40... h4 {[%clk 0:00:04.2]} 41. Rb2 {[%clk 0:00:20]} 41... d5 {[%clk
0:00:03.5]} 42. Rh2 {[%clk 0:00:19]} 42... dxe4+ {[%clk 0:00:03.5]} 43. Kxe4
{[%clk 0:00:19.9]} 43... Rc4+ {[%clk 0:00:04.1]} 44. Ke3 {[%clk 0:00:19.9]}
44... Ke7 {[%clk 0:00:04]} 45. Rxh4 {[%clk 0:00:19.5]} 45... Kd6 {[%clk
0:00:04.6]} 46. Rh7 {[%clk 0:00:18.7]} 46... Re8+ {[%clk 0:00:03.8]} 47. Kd3
{[%clk 0:00:17.8]} 47... Rxf4 {[%clk 0:00:03.6]} 48. Kd2 {[%clk 0:00:13]} 48...
Rf5 {[%clk 0:00:03.7]} 49. Ra4 {[%clk 0:00:12.1]} 49... Rd5+ {[%clk 0:00:03]}
50. Kc3 {[%clk 0:00:10.2]} 50... Re7 {[%clk 0:00:03.9]} 51. Rc4 {[%clk
0:00:09.1]} 51... Rc5 {[%clk 0:00:04.3]} 52. Rxc5 {[%clk 0:00:07.2]} 52... Kxc5
{[%clk 0:00:04.5]} 53. Rh4 {[%clk 0:00:06.7]} 53... Kxc6 {[%clk 0:00:05]} 54.
Rc4+ {[%clk 0:00:06.5]} 54... Kd6 {[%clk 0:00:05.1]} 55. Rd4+ {[%clk 0:00:06.4]}
55... Ke5 {[%clk 0:00:05.3]} 56. Rd1 {[%clk 0:00:06.1]} 56... Kf5 {[%clk
0:00:05.2]} 57. Rg1 {[%clk 0:00:05.8]} 57... Kf4 {[%clk 0:00:05.2]} 58. Kc4
{[%clk 0:00:05.8]} 58... Kf3 {[%clk 0:00:04.2]} 59. Kd4 {[%clk 0:00:05.8]} 59...
Rd7+ {[%clk 0:00:04]} 60. Kc5 {[%clk 0:00:05.2]} 60... Kf2 {[%clk 0:00:03.6]}
61. Rg4 {[%clk 0:00:03.5]} 61... Re7 {[%clk 0:00:03.5]} 62. Kc6 {[%clk 0:00:03]}
62... Kf3 {[%clk 0:00:03.7]} 63. Rg1 {[%clk 0:00:02.6]} 63... Kf4 {[%clk
0:00:04.2]} 64. Rg2 {[%clk 0:00:02.2]} 64... Re5 {[%clk 0:00:04.1]} 65. Kxc7
{[%clk 0:00:01.6]} 65... Rxg5 {[%clk 0:00:03.9]} 66. Rf2+ {[%clk 0:00:02]} 66...
Kg3 {[%clk 0:00:03.3]} 67. Rxf7 {[%clk 0:00:02.9]} 67... Rf5 {[%clk 0:00:03.4]}
68. Rg7 {[%clk 0:00:01.9]} 68... g5 {[%clk 0:00:03.9]} 69. Kd6 {[%clk
0:00:02.1]} 69... g4 {[%clk 0:00:04.4]} 70. Ke6 {[%clk 0:00:02.2]} 70... Rf8
{[%clk 0:00:04.8]} 71. Ke5 {[%clk 0:00:02]} 71... Kf3 {[%clk 0:00:04.7]} 72. Kd4
{[%clk 0:00:01.8]} 72... g3 {[%clk 0:00:04.8]} 73. Kd3 {[%clk 0:00:01.8]} 73...
Kg2 {[%clk 0:00:05.2]} 0-1

[Event "*** SCC Grand Prix: Titled Tuesday Blitz"]
[Site "Chess.com"]
[Date "2020.06.09"]
[Round "10"]
[White "blitzking1729"]
[Black "Gerodot71"]
[Result "1-0"]
[WhiteElo "2556"]
[BlackElo "2395"]
[TimeControl "180+1"]
[EndTime "10:59:27 PDT"]
[Termination "blitzking1729 won by checkmate"]

1. c4 {[%clk 0:03:00.9]} 1... e5 {[%clk 0:02:59.7]} 2. Nc3 {[%clk 0:03:00.7]}
2... Nf6 {[%clk 0:02:59.5]} 3. Nf3 {[%clk 0:03:00.8]} 3... Nc6 {[%clk
0:02:59.3]} 4. d3 {[%clk 0:03:01]} 4... d5 {[%clk 0:02:54.7]} 5. cxd5 {[%clk
0:02:59.8]} 5... Nxd5 {[%clk 0:02:55.6]} 6. e4 {[%clk 0:02:58.8]} 6... Nxc3
{[%clk 0:02:27.5]} 7. bxc3 {[%clk 0:02:56.5]} 7... Bc5 {[%clk 0:02:28]} 8. Be2
{[%clk 0:02:53.3]} 8... O-O {[%clk 0:02:26.2]} 9. O-O {[%clk 0:02:52.8]} 9...
Bb6 {[%clk 0:02:26.7]} 10. a4 {[%clk 0:02:48.1]} 10... f5 {[%clk 0:02:17.4]} 11.
Qb3+ {[%clk 0:02:38.6]} 11... Kh8 {[%clk 0:02:15.6]} 12. Ng5 {[%clk 0:02:37.4]}
12... Qe8 {[%clk 0:02:10.6]} 13. Ba3 {[%clk 0:02:31.5]} 13... Rf6 {[%clk
0:02:07.2]} 14. Kh1 {[%clk 0:02:21]} 14... h6 {[%clk 0:02:06.9]} 15. Nf3 {[%clk
0:02:16.4]} 15... Be6 {[%clk 0:02:06.5]} 16. Qc2 {[%clk 0:02:11.6]} 16... fxe4
{[%clk 0:02:00.4]} 17. dxe4 {[%clk 0:02:10.9]} 17... Bg4 {[%clk 0:02:00]} 18.
Nh4 {[%clk 0:01:52.1]} 18... Qh5 {[%clk 0:01:55.1]} 19. Bxg4 {[%clk 0:01:50.4]}
19... Qxh4 {[%clk 0:01:55.5]} 20. Bf5 {[%clk 0:01:46.3]} 20... g6 {[%clk
0:01:52.3]} 21. Bh3 {[%clk 0:01:33.3]} 21... Rxf2 {[%clk 0:01:44.5]} 22. Rxf2
{[%clk 0:01:31.3]} 22... Qxf2 {[%clk 0:01:45.4]} 23. Qxf2 {[%clk 0:01:30.8]}
23... Bxf2 {[%clk 0:01:46.3]} 24. Rf1 {[%clk 0:01:30.9]} 24... Bb6 {[%clk
0:01:40.2]} 25. Be6 {[%clk 0:01:29.9]} 25... Rd8 {[%clk 0:01:34.5]} 26. Bd5
{[%clk 0:01:28.1]} 26... Rd7 {[%clk 0:01:26.9]} 27. h3 {[%clk 0:01:19.3]} 27...
h5 {[%clk 0:01:14.7]} 28. g4 {[%clk 0:01:15.5]} 28... hxg4 {[%clk 0:01:12.7]}
29. hxg4 {[%clk 0:01:15.4]} 29... Kg7 {[%clk 0:01:13.3]} 30. Kg2 {[%clk
0:01:08]} 30... Kh6 {[%clk 0:01:12.2]} 31. Kg3 {[%clk 0:00:42.9]} 31... Kg7
{[%clk 0:00:54.5]} 32. Bf8+ {[%clk 0:00:40.1]} 32... Kh8 {[%clk 0:00:54.8]} 33.
Rf6 {[%clk 0:00:24.5]} 33... Ne7 {[%clk 0:00:42.6]} 34. Bxe7 {[%clk 0:00:19.1]}
34... Rxe7 {[%clk 0:00:42.1]} 35. Bxb7 {[%clk 0:00:18.5]} 35... Kg7 {[%clk
0:00:41]} 36. g5 {[%clk 0:00:18.3]} 36... Rd7 {[%clk 0:00:38.7]} 37. Bd5 {[%clk
0:00:17.5]} 37... Re7 {[%clk 0:00:37.7]} 38. Kg4 {[%clk 0:00:15.2]} 38... Rd7
{[%clk 0:00:35.4]} 39. Re6 {[%clk 0:00:14.9]} 39... Ba5 {[%clk 0:00:30.3]} 40.
Rxe5 {[%clk 0:00:13.2]} 40... Bxc3 {[%clk 0:00:30.5]} 41. Re8 {[%clk 0:00:13]}
41... Bd4 {[%clk 0:00:25.1]} 42. Kf4 {[%clk 0:00:10.9]} 42... Bc5 {[%clk
0:00:23.3]} 43. Rg8+ {[%clk 0:00:10.1]} 43... Kh7 {[%clk 0:00:23]} 44. Ra8
{[%clk 0:00:09.3]} 44... Bd4 {[%clk 0:00:18.1]} 45. Bc6 {[%clk 0:00:07.5]} 45...
Re7 {[%clk 0:00:17.5]} 46. Bd5 {[%clk 0:00:06.4]} 46... Rd7 {[%clk 0:00:17]} 47.
Kg4 {[%clk 0:00:05.6]} 47... Kg7 {[%clk 0:00:16.8]} 48. a5 {[%clk 0:00:05.5]}
48... Re7 {[%clk 0:00:14.8]} 49. a6 {[%clk 0:00:05.5]} 49... Bb6 {[%clk
0:00:14.3]} 50. Rg8+ {[%clk 0:00:04.7]} 50... Kh7 {[%clk 0:00:14.4]} 51. Ra8
{[%clk 0:00:04.5]} 51... Rd7 {[%clk 0:00:13.9]} 52. Kf4 {[%clk 0:00:04.1]} 52...
Re7 {[%clk 0:00:13.6]} 53. e5 {[%clk 0:00:04]} 53... Bd4 {[%clk 0:00:13.3]} 54.
e6 {[%clk 0:00:04.1]} 54... Kg7 {[%clk 0:00:12.5]} 55. Ke4 {[%clk 0:00:04.3]}
55... Bb6 {[%clk 0:00:11.2]} 56. Ke5 {[%clk 0:00:04.3]} 56... Bf2 {[%clk
0:00:09.8]} 57. Bc6 {[%clk 0:00:03.4]} 57... Bb6 {[%clk 0:00:09]} 58. Bd7 {[%clk
0:00:03.3]} 58... Bc5 {[%clk 0:00:07.7]} 59. Kd5 {[%clk 0:00:03.4]} 59... Bb6
{[%clk 0:00:07.9]} 60. Kc6 {[%clk 0:00:03.7]} 60... Bf2 {[%clk 0:00:06.8]} 61.
Rc8 {[%clk 0:00:03.5]} 61... Bb6 {[%clk 0:00:07.7]} 62. Ra8 {[%clk 0:00:03.4]}
62... Be3 {[%clk 0:00:07.4]} 63. Kxc7 {[%clk 0:00:03.5]} 63... Bxg5 {[%clk
0:00:07.6]} 64. Rxa7 {[%clk 0:00:03.6]} 64... Bf4+ {[%clk 0:00:08.5]} 65. Kc6
{[%clk 0:00:03.2]} 65... Be3 {[%clk 0:00:08.4]} 66. Ra8 {[%clk 0:00:03.4]} 66...
g5 {[%clk 0:00:08.9]} 67. a7 {[%clk 0:00:03.6]} 67... g4 {[%clk 0:00:08.5]} 68.
Rg8+ {[%clk 0:00:03.1]} 68... Kxg8 {[%clk 0:00:09.4]} 69. a8=Q+ {[%clk
0:00:03.4]} 69... Kg7 {[%clk 0:00:10.3]} 70. Qa3 {[%clk 0:00:03.5]} 70... Bg5
{[%clk 0:00:08.9]} 71. Qc3+ {[%clk 0:00:03.5]} 71... Bf6 {[%clk 0:00:09]} 72.
Qg3 {[%clk 0:00:03.5]} 72... Kf8 {[%clk 0:00:08.8]} 73. Qxg4 {[%clk 0:00:03.4]}
73... Rg7 {[%clk 0:00:09.7]} 74. Qf5 {[%clk 0:00:03.1]} 74... Ke7 {[%clk
0:00:10.6]} 75. Qc5+ {[%clk 0:00:02.9]} 75... Kd8 {[%clk 0:00:09.8]} 76. Qf8#
{[%clk 0:00:02.8]} 1-0